bitfinex/quotes_ETHUSD_20251224
["timestamp","ask_amount","ask_price","bid_price","bid_amount"]
[1766536334899,3.39560322,2959.7,2959.3,0.9311]
[1766536336675,3.39560322,2959.7,2959.1,0.9311]
[1766536336877,0.01688077,2959.5,2959.1,0.9311]
[1766536337279,0.01688077,2959.5,2959.1,0.9331]
[1766536338595,0.01688077,2959.4,2959.1,0.9331]
[1766536338892,0.01688077,2959.4,2959.1,0.002]
[1766536339395,0.01688077,2959.4,2959.1,0.9331]
[1766536343506,0.01788077,2959.7,2959.1,0.9331]
[1766536343891,0.001,2959.7,2959.2,0.9311]
[1766536344310,0.001,2959.6,2959.2,0.9311]
[1766536353314,0.001,2959.6,2959.1,0.002]
[1766536354021,0.001,2959.6,2959.1,0.9063]
[1766536355227,0.01688077,2959.5,2959.1,0.9063]
[1766536360732,3.39585211,2959.5,2959.1,0.9063]
[1766536360946,0.01688077,2959.5,2959.1,0.9063]
[1766536369149,0.001,2959.6,2959.0,0.002]
[1766536369351,0.01688077,2959.5,2959.0,0.915]
[1766536369943,0.001,2959.6,2959.0,0.915]
[1766536374360,0.001,2959.6,2959.1,0.913]
[1766536380863,0.001,2959.6,2959.2,0.94679291]
[1766536381268,0.001,2959.7,2959.3,0.9009]
[1766536381466,0.001,2959.9,2959.5,0.9009]
[1766536382167,0.001,2960.1,2959.7,0.9009]
[1766536382382,0.001,2960.2,2959.7,0.9009]
[1766536382538,0.001,2960.5,2959.9,0.9009]
[1766536382744,0.13622719,2960.8,2960.1,0.9009]
[1766536382745,0.001,2960.8,2960.1,0.9009]
[1766536382949,0.001,2960.8,2959.9,4.32035852]
[1766536382950,0.01688077,2960.7,2959.9,0.9009]
[1766536383241,0.01688077,2960.5,2959.9,0.9009]
[1766536383471,0.01688077,2960.3,2959.9,0.9009]
[1766536385773,0.01688077,2960.5,2959.9,0.9009]
[1766536386274,0.01688077,2960.5,2960.0,0.9009]
[1766536386441,0.01688077,2960.5,2960.0,0.93468378]
[1766536386947,3.39450485,2960.7,2960.0,0.93468378]
[1766536386948,0.01688077,2960.7,2960.0,0.93468378]
[1766536387470,0.01688077,2960.7,2960.1,0.9009]
[1766536388073,3.3944695,2960.7,2960.1,0.9009]
[1766536389779,7.45114025,2960.7,2960.1,0.9009]
[1766536389982,7.45114025,2960.7,2959.5,4.39309152]
[1766536389983,0.01688077,2960.5,2959.9,0.9009]
[1766536390287,0.01688077,2960.5,2959.6,3.37880154]
[1766536390288,0.01688077,2960.3,2959.7,0.9009]
[1766536390450,0.01688077,2960.3,2959.9,0.002]
[1766536391478,0.5,2960.1,2959.9,0.002]
[1766536395891,0.01688077,2960.5,2959.9,0.002]
[1766536396046,0.001,2960.7,2960.0,0.9009]
[1766536396594,0.001,2960.8,2960.1,0.03378264]
[1766536396750,0.01788077,2961.0,2960.2,0.9009]
[1766536396751,0.001,2961.0,2960.2,0.9009]
[1766536396951,0.001,2961.0,2960.4,0.9009]
[1766536397161,0.001,2961.0,2960.6,0.9009]
[1766536397671,0.001,2961.0,2960.7,0.93467579]
[1766536397869,0.001,2961.0,2960.7,0.9009]
[1766536401582,0.01688077,2960.9,2960.5,0.9009]
[1766536403071,0.001,2961.0,2960.5,0.9009]
[1766536405362,0.001,2961.0,2960.5,0.9019]
[1766536405683,0.001,2961.0,2960.5,1.41829061]
[1766536406356,0.001,2961.0,2960.6,0.9009]
[1766536410174,0.01688077,2960.9,2960.6,0.9009]
[1766536412592,0.01688077,2960.9,2960.5,0.001]
[1766536412907,0.01688077,2960.5,2959.9,0.002]
[1766536413066,0.01688077,2960.3,2959.5,0.9076]
[1766536413397,0.01688077,2960.1,2959.6,0.9076]
[1766536415481,3.39518685,2960.1,2959.6,0.9076]
[1766536417207,0.01688077,2960.1,2959.6,0.9076]
[1766536417770,0.5,2959.9,2959.6,0.9076]
[1766536423133,3.39514514,2960.1,2959.6,0.9076]
[1766536429313,0.5,2959.9,2959.6,0.9076]
[1766536430550,3.39514514,2960.1,2959.6,0.9076]
[1766536430931,4.07425384,2960.1,2959.6,0.9076]
[1766536431133,0.01688077,2959.9,2959.6,0.9076]
[1766536434541,0.5,2959.8,2959.6,0.9076]
[1766536434947,0.01688077,2959.9,2959.5,0.002]
[1766536434948,3.39543842,2959.9,2959.5,0.002]
[1766536435149,0.97392908,2959.8,2959.5,0.002]
[1766536435449,0.01688077,2959.7,2959.5,0.002]
[1766536437952,3.39560806,2959.7,2959.5,0.002]
[1766536438254,3.39560806,2959.7,2959.3,0.001]
[1766536440058,0.5,2959.5,2959.3,0.001]
[1766536440638,0.01688077,2959.7,2959.3,0.9851]
[1766536441061,3.39543575,2959.9,2959.3,0.9851]
[1766536441231,0.77290156,2959.9,2959.3,0.9851]
[1766536441429,3.37832529,2960.1,2959.5,0.984]
[1766536441625,6.77353135,2960.1,2959.5,0.984]
[1766536442158,3.39520606,2960.1,2959.5,0.984]
[1766536442367,7.45265596,2960.1,2959.5,0.984]
[1766536442734,0.01688077,2959.9,2959.5,0.984]
[1766536442932,0.01688077,2959.9,2959.3,0.985]
[1766536443131,0.01688077,2959.7,2959.3,0.985]
[1766536444046,4.07433067,2960.1,2959.3,0.985]
[1766536444372,0.01688077,2959.9,2959.3,0.985]
[1766536445265,0.5,2959.7,2959.3,0.985]
[1766536447266,3.37840213,2960.0,2959.3,0.985]
[1766536448274,0.01688077,2960.1,2959.3,0.985]
[1766536449876,0.01788077,2960.3,2959.4,0.984]
[1766536450070,0.01788077,2960.3,2959.6,0.984]
[1766536450071,3.39595396,2960.3,2959.6,0.984]
[1766536450278,3.39595396,2960.3,2959.8,0.984]
[1766536450477,3.33184687,2960.3,2959.8,0.984]
[1766536450877,0.001,2960.1,2959.8,0.984]
[1766536452549,0.01688077,2960.3,2959.9,1.01778492]
[1766536452752,4.27646617,2960.7,2959.9,0.984]
[1766536453050,4.27646617,2960.7,2960.1,0.984]
[1766536453051,0.01688077,2960.5,2960.1,0.984]
[1766536455054,3.39470586,2960.5,2960.1,0.984]
[1766536455651,3.39470586,2960.5,2959.9,0.984]
[1766536456379,0.01688077,2960.5,2959.9,1.18992787]
[1766536457579,3.39470897,2960.5,2959.9,1.18992787]
[1766536457781,0.01688077,2960.3,2959.9,0.20592787]
[1766536458076,0.01688077,2960.3,2959.8,0.885]
[1766536458281,0.01688077,2960.3,2959.8,1.869]
[1766536459075,3.39493042,2960.3,2959.8,0.984]
[1766536459579,0.01688077,2960.3,2959.8,0.984]
[1766536461580,4.33457981,2960.5,2959.8,0.984]
[1766536461884,3.39571144,2960.5,2959.8,0.984]
[1766536462065,3.39571144,2960.5,2960.0,0.984]
[1766536462864,3.36886895,2960.5,2960.0,0.984]
[1766536463488,3.37769371,2960.6,2960.0,0.984]
[1766536463661,0.01688077,2960.5,2960.0,0.984]
[1766536465961,0.01788077,2960.5,2960.0,0.984]
[1766536467091,0.5,2960.3,2960.0,0.984]
[1766536468187,0.01788077,2960.5,2959.9,0.984]
[1766536468371,3.39570418,2960.5,2959.9,0.984]
[1766536474970,0.01688077,2960.5,2959.9,0.984]
[1766536480511,3.3779219,2960.4,2959.9,0.984]
[1766536481426,3.3779219,2960.4,2959.9,0.986]
[1766536481620,3.39573596,2960.5,2959.9,0.986]
[1766536487025,3.31451002,2960.5,2959.9,1.51116997]
[1766536487424,3.33139079,2960.5,2959.9,0.986]
[1766536488329,0.984,2960.9,2960.0,0.9187]
[1766536488504,0.001,2961.1,2960.3,0.9187]
[1766536488825,0.001,2961.5,2960.9,0.9187]
[1766536489122,0.001,2961.5,2961.1,0.9187]
[1766536489310,0.001,2961.5,2961.0,0.55743529]
[1766536489311,0.001,2961.5,2961.3,0.9187]
[1766536489517,0.001,2961.5,2961.4,0.03376781]
[1766536489713,0.001,2961.5,2961.4,0.9187]
[1766536490028,0.001,2961.5,2961.4,0.95246781]
[1766536490423,0.001,2961.5,2961.4,0.9187]
[1766536492331,0.001,2961.5,2961.0,1.44236292]
[1766536492506,0.001,2961.5,2961.2,0.13516504]
[1766536493331,0.001,2961.5,2961.3,0.03376895]
[1766536495029,0.001,2961.7,2961.3,0.03376895]
[1766536495030,0.001,2961.9,2961.6,0.9187]
[1766536495716,0.001,2961.9,2961.6,1.93227343]
[1766536496519,3.37723784,2961.9,2961.6,1.93227343]
[1766536496719,0.001,2961.9,2961.6,1.93227343]
[1766536499141,3.37598325,2962.1,2961.6,1.93227343]
[1766536499841,3.3779214,2962.2,2961.6,1.93227343]
[1766536500416,3.39480217,2962.2,2961.6,1.93227343]
[1766536500610,3.39480217,2962.2,2961.6,1.01357343]
[1766536500815,3.39480217,2962.2,2961.7,0.9187]
[1766536501309,3.39480217,2962.2,2961.4,0.9111]
[1766536501310,0.01688077,2962.1,2961.4,0.9111]
[1766536502048,0.01688077,2962.1,2961.6,0.9111]
[1766536502226,0.002,2962.2,2961.7,0.9111]
[1766536502429,0.001,2962.3,2961.9,0.9111]
[1766536503220,0.001,2962.5,2961.8,0.9111]
[1766536503421,0.001,2962.5,2962.0,0.9111]
[1766536504747,0.001,2962.9,2962.2,0.9111]
[1766536505049,3.37469467,2963.3,2962.4,0.9111]
[1766536505250,3.39145209,2963.4,2962.6,0.9111]
[1766536505454,3.37457132,2963.4,2962.8,0.9111]
[1766536505623,0.01888077,2963.3,2962.8,0.9111]
[1766536505942,0.69568311,2963.3,2962.8,0.9111]
[1766536507451,4.07032894,2963.3,2962.8,0.9111]
[1766536507656,3.3935266,2963.3,2962.8,0.9111]
[1766536508256,0.002,2963.3,2962.8,0.9111]
[1766536509236,0.002,2963.3,2963.0,0.9111]
[1766536510763,3.3742608,2963.7,2962.7,0.9111]
[1766536511066,7.18912384,2963.7,2962.9,0.9111]
[1766536511965,7.16188279,2963.7,2962.9,0.9111]
[1766536512650,0.002,2963.3,2962.9,0.9111]
[1766536521370,3.37438839,2963.5,2962.8,0.9111]
[1766536521776,4.09500624,2963.5,2962.8,0.9111]
[1766536524778,0.01688077,2963.4,2962.8,0.9111]
[1766536525158,3.39142337,2963.4,2962.8,0.9111]
[1766536525564,3.37488038,2963.4,2962.9,0.9111]
[1766536526560,3.3745426,2963.4,2962.9,0.9111]
[1766536531367,4.09705322,2963.5,2962.9,0.9111]
[1766536534295,4.09705322,2963.5,2963.1,0.9044]
[1766536534296,0.002,2963.5,2963.1,0.9044]
[1766536534696,0.002,2963.5,2963.3,0.9044]
[1766536535506,3.37639403,2963.5,2963.0,1.91748055]
[1766536535700,0.002,2963.5,2963.0,1.91748055]
[1766536535892,0.002,2963.5,2963.1,0.9044]
[1766536536098,0.002,2963.5,2963.2,0.9381473]
[1766536537309,3.29516575,2963.7,2963.2,0.9381473]
[1766536537512,0.002,2963.9,2963.2,0.9381473]
[1766536537722,4.23424128,2963.9,2963.2,0.9381473]
[1766536538479,7.60821545,2963.9,2963.2,0.9381473]
[1766536538705,0.01688077,2963.8,2963.2,0.9381473]
[1766536538880,4.23424128,2963.9,2963.2,0.9381473]
[1766536539505,0.01688077,2963.8,2963.2,0.9381473]
[1766536539913,0.86916421,2963.8,2963.2,0.9381473]
[1766536540114,0.86916421,2963.8,2963.3,0.93814616]
[1766536540813,0.86916421,2963.8,2963.3,0.9044]
[1766536540814,6.76513891,2963.8,2963.3,0.9044]
[1766536541515,6.76513891,2963.8,2963.1,0.9044]
[1766536541718,0.01688077,2963.2,2962.2,0.9044]
[1766536541917,4.30895657,2962.7,2962.2,0.9044]
[1766536542123,4.30895657,2962.5,2961.9,0.9044]
[1766536542419,7.68454927,2962.5,2962.0,0.03376097]
[1766536542713,3.3755927,2962.5,2962.0,0.93816097]
[1766536543119,6.7511854,2962.5,2961.7,1.7894]
[1766536543415,0.01688077,2962.4,2961.7,0.9054]
[1766536543615,0.01688077,2962.4,2961.7,0.001]
[1766536543616,4.30895657,2962.3,2961.7,0.001]
[1766536543803,4.30895657,2962.3,2961.6,0.001]
[1766536543804,0.01688077,2962.0,2961.6,0.001]
[1766536544409,3.37618191,2962.0,2961.6,0.001]
[1766536544605,3.39291327,2962.1,2961.6,0.001]
[1766536548499,6.76894577,2962.1,2961.6,0.001]
[1766536548693,6.76894577,2962.1,2961.4,0.001]
[1766536548694,4.30895657,2962.0,2961.4,0.001]
[1766536548899,0.01688077,2961.9,2961.3,0.001]
[1766536550346,3.3763252,2961.8,2961.3,0.001]
[1766536550642,3.3763252,2961.8,2961.3,0.9054]
[1766536551752,3.3763252,2961.8,2961.5,0.001]
[1766536560655,3.39313094,2961.9,2961.5,0.001]
[1766536561149,3.37625017,2961.9,2961.5,0.001]
[1766536561814,3.37609723,2962.0,2961.5,0.001]
[1766536562018,3.29479846,2962.0,2961.5,0.001]
[1766536563030,3.29479846,2962.0,2961.5,0.9735]
[1766536569376,3.29679846,2962.0,2961.5,0.9735]
[1766536573770,3.21565034,2962.0,2961.5,0.9735]
[1766536576051,0.002,2962.0,2961.5,0.9735]
[1766536576456,0.5,2961.8,2961.5,0.9735]
[1766536580179,3.37529955,2962.7,2961.7,0.9725]
[1766536580380,0.01688077,2962.6,2961.9,0.9725]
[1766536580661,3.37529955,2962.7,2962.1,0.9725]
[1766536581092,6.7505991,2962.7,2962.1,0.9725]
[1766536582987,3.37529955,2962.7,2962.1,0.9725]
[1766536583290,3.37529955,2962.7,2962.1,1.15815]
[1766536586674,3.37729955,2962.7,2962.1,1.15815]
[1766536588297,6.7525991,2962.7,2962.1,1.15815]
[1766536590507,6.7525991,2962.7,2962.1,0.9725]
[1766536598018,3.34936248,2962.7,2962.1,0.9725]
[1766536598923,6.72466203,2962.7,2962.1,0.9725]
[1766536607525,0.002,2962.7,2962.1,0.9725]
[1766536609917,4.25887188,2963.1,2962.3,0.9124]
[1766536610230,0.002,2963.1,2962.5,0.9124]
[1766536610431,0.002,2963.2,2962.6,0.03375413]
[1766536610735,0.002,2963.7,2962.8,0.9124]
[1766536610911,0.002,2963.7,2963.0,0.9124]
[1766536611111,0.002,2963.7,2963.2,0.9124]
[1766536611430,3.37617588,2963.7,2963.2,0.9124]
[1766536612113,0.002,2963.7,2963.2,0.9124]
[1766536612795,3.37618029,2963.7,2963.2,0.9124]
[1766536613930,0.002,2963.7,2963.2,0.9124]
[1766536619002,0.002,2963.7,2962.9,0.9124]
[1766536619201,0.002,2963.7,2963.0,0.17964]
[1766536619407,0.01688077,2963.6,2963.0,0.17964]
[1766536620047,3.39121487,2963.6,2963.0,0.17964]
[1766536620401,0.01688077,2963.6,2963.0,0.17964]
[1766536620606,3.37618963,2963.7,2963.0,1.09204]
[1766536620840,3.37618963,2963.7,2963.1,1.35911083]
[1766536621040,3.37618963,2963.7,2963.1,0.9124]
[1766536621506,0.002,2963.7,2963.2,1.0114473]
[1766536621708,0.002,2963.9,2963.2,0.0337473]
[1766536622007,0.002,2963.9,2963.3,0.9777]
[1766536622206,0.002,2963.9,2963.4,1.01144502]
[1766536623607,0.002,2963.9,2963.6,0.9777]
[1766536625348,0.002,2963.9,2963.7,0.0337416]
[1766536625549,0.002,2964.9,2963.8,0.9777]
[1766536625755,0.002,2964.9,2963.9,1.01143932]
[1766536625916,0.002,2964.9,2964.2,0.9777]
[1766536626118,0.002,2964.9,2964.6,0.9777]
[1766536626425,0.002,2965.1,2964.8,0.9777]
[1766536627543,0.002,2965.1,2964.0,0.53231658]
[1766536627743,0.01688077,2965.0,2964.3,0.9777]
[1766536628447,3.37279503,2964.9,2964.3,0.9777]
[1766536630065,0.01688077,2964.8,2964.0,0.9777]
[1766536630349,7.62813506,2965.1,2964.1,0.9777]
[1766536630554,7.62813506,2965.1,2964.3,0.9777]
[1766536630916,7.62813506,2965.1,2964.4,0.9777]
[1766536630917,0.01688077,2965.0,2964.4,0.9777]
[1766536632122,0.002,2964.9,2964.4,0.9777]
[1766536632655,0.002,2965.1,2964.6,0.9777]
[1766536632869,0.002,2965.1,2964.8,0.9777]
[1766536633646,3.37457953,2965.1,2964.4,0.9777]
[1766536633851,3.37457953,2965.1,2964.5,0.18607]
[1766536636157,0.002,2965.1,2964.5,0.9777]
[1766536636976,0.002,2965.1,2964.3,4.2564561]
[1766536636977,6.74308832,2966.0,2964.9,0.9777]
[1766536637277,6.75996909,2966.0,2965.1,0.9777]
[1766536638641,3.37154416,2966.0,2965.1,0.9777]
[1766536638859,3.37154416,2966.0,2965.3,0.9777]
[1766536638860,6.74308832,2966.0,2965.3,0.9777]
[1766536639454,3.39034298,2966.1,2965.3,0.9777]
[1766536639625,3.39034298,2966.1,2965.4,0.03372226]
[1766536639826,3.39034298,2966.1,2965.4,1.01142226]
[1766536640236,0.01888077,2966.1,2965.4,1.01142226]
[1766536640442,3.39031428,2966.1,2965.4,1.44979611]
[1766536640632,6.76174779,2966.1,2965.4,1.44979611]
[1766536640833,3.39031428,2966.1,2965.4,0.9777]
[1766536641033,6.76174779,2966.1,2965.4,0.9777]
[1766536641554,3.37343351,2966.1,2965.5,0.03372112]
[1766536641760,3.39031428,2966.1,2965.5,1.01142112]
[1766536641957,3.37343351,2966.1,2965.5,1.01142112]
[1766536642151,3.37343351,2966.1,2965.5,0.9777]
[1766536642348,3.37348218,2966.1,2965.5,0.9777]
[1766536643162,3.39036295,2966.1,2965.5,0.9777]
[1766536646067,0.002,2966.1,2965.6,0.03371998]
[1766536646261,0.002,2966.1,2965.6,0.9777]
[1766536646463,0.01888077,2966.3,2965.8,0.9777]
[1766536646761,3.37139748,2966.2,2965.8,0.9777]
[1766536646963,0.002,2966.3,2965.8,0.9777]
[1766536647134,0.002,2966.3,2965.9,1.01141657]
[1766536648264,0.01688077,2966.7,2966.0,0.9777]
[1766536648570,3.37026284,2967.2,2966.2,0.9777]
[1766536648571,3.37047487,2967.0,2966.2,0.9777]
[1766536648737,3.37047487,2967.0,2966.1,0.883]
[1766536648939,3.37047487,2967.0,2966.2,0.9777]
[1766536648940,0.01688077,2966.9,2966.2,0.9777]
[1766536649268,0.002,2966.3,2965.7,0.883]
[1766536649430,0.002,2966.3,2965.8,0.9777]
[1766536649960,4.30153518,2966.6,2965.8,0.9777]
[1766536649961,6.74094598,2967.0,2965.9,1.01141657]
[1766536650161,3.37035484,2967.1,2966.0,3.37152184]
[1766536650344,0.89988077,2967.3,2966.2,0.9777]
[1766536650549,4.26999366,2967.3,2966.4,0.9777]
[1766536650746,5.46434277,2967.3,2966.4,0.9777]
[1766536650952,8.83445566,2967.3,2966.4,0.9777]
[1766536651274,4.31841595,2967.1,2966.4,0.9777]
[1766536651767,8.83445566,2967.3,2966.5,1.00380975]
[1766536651978,8.83445566,2967.3,2966.5,0.9701]
[1766536652289,3.37029422,2967.1,2966.5,0.9701]
[1766536653248,4.16842989,2967.2,2966.7,0.9701]
[1766536653750,7.53865872,2967.2,2966.7,0.9701]
[1766536653959,0.5294,2967.1,2966.1,0.883]
[1766536654148,0.80680587,2967.0,2966.2,0.9701]
[1766536654351,4.1772162,2967.0,2966.3,1.00381203]
[1766536655358,0.89788077,2967.6,2966.3,1.00381203]
[1766536655359,0.9776,2967.9,2966.5,0.6704]
[1766536655560,0.9776,2967.7,2966.7,0.6704]
[1766536655761,0.9776,2967.7,2966.6,5.2182438]
[1766536655762,0.9776,2967.7,2966.9,0.6704]
[1766536656593,0.9776,2967.5,2966.9,0.6704]
[1766536656965,0.9776,2967.5,2967.0,0.70410407]
[1766536657363,0.01688077,2968.0,2967.0,0.6704]
[1766536657364,0.9776,2967.7,2967.0,0.6704]
[1766536657780,0.9776,2967.7,2967.1,0.6704]
[1766536658369,0.9776,2967.4,2966.7,0.6704]
[1766536661059,4.28446706,2967.3,2966.7,0.6704]
[1766536663298,0.9144,2967.3,2966.7,0.6704]
[1766536664758,3.36986602,2967.5,2966.7,0.6704]
[1766536664963,3.36986602,2967.5,2966.9,0.6704]
[1766536665985,3.36986602,2967.5,2967.1,0.6704]
[1766536666286,0.9144,2967.8,2966.8,0.03370635]
[1766536666504,0.9144,2967.8,2966.9,0.03370521]
[1766536666662,0.9144,2967.6,2966.6,0.883]
[1766536666862,0.9144,2967.6,2966.6,4.25385269]
[1766536667695,6.73967986,2967.5,2966.4,3.37208953]
[1766536667869,0.9144,2967.5,2966.4,8.33183187]
[1766536668056,0.9144,2967.5,2966.5,0.91570975]
[1766536668698,3.36966538,2967.7,2966.6,4.30153518]
[1766536668868,3.36966538,2967.7,2966.7,0.03370748]
[1766536669188,0.9144,2967.6,2966.7,0.03370748]
[1766536669367,0.9144,2967.4,2966.4,1.58965281]
[1766536669575,0.9144,2967.4,2966.5,0.882]
[1766536669893,0.9144,2967.3,2966.6,0.882]
[1766536671269,0.9144,2967.3,2966.7,0.03370748]
[1766536672503,0.9144,2967.6,2966.7,0.03370748]
[1766536672660,0.9144,2967.5,2966.7,3.40441258]
[1766536673291,3.36977695,2967.6,2966.7,3.40441258]
[1766536673292,4.28404066,2967.7,2966.7,7.54089652]
[1766536673492,0.9144,2967.6,2966.7,4.1364404]
[1766536673692,3.36983993,2967.5,2966.7,0.79944278]
[1766536673897,0.9144,2967.4,2966.8,0.882]
[1766536676501,3.37005376,2967.4,2966.8,0.882]
[1766536676710,0.9144,2967.3,2966.8,0.882]
[1766536677007,0.9144,2967.3,2966.4,0.001]
[1766536677202,0.9144,2967.3,2966.7,0.882]
[1766536677423,0.9144,2967.3,2966.6,0.882]
[1766536678519,0.9144,2967.0,2966.6,0.882]
[1766536678915,0.9144,2967.0,2966.4,0.001]
[1766536679205,0.9144,2967.0,2966.4,0.883]
[1766536679579,0.9144,2967.0,2966.4,0.001]
[1766536681079,0.9144,2967.0,2966.4,0.03471089]
[1766536682117,1.0118641,2967.9,2966.4,4.30253518]
[1766536682118,0.9338,2967.3,2966.4,4.30253518]
[1766536682280,0.88,2967.7,2966.4,4.30253518]
[1766536682281,4.30343839,2967.7,2966.7,4.30153518]
[1766536682481,4.30343839,2967.7,2966.8,0.91570635]
[1766536683026,4.30343839,2967.7,2966.8,4.28631218]
[1766536683413,4.30343839,2967.7,2966.8,4.25260583]
[1766536683613,0.9338,2967.7,2966.8,4.25260583]
[1766536684526,4.30343817,2967.7,2966.8,4.25260583]
[1766536685915,3.36941989,2967.9,2966.9,0.03370521]
[1766536685916,0.9338,2967.9,2966.9,0.03370521]
[1766536687456,0.9338,2967.9,2967.0,4.30153518]
[1766536687608,0.9338,2967.9,2967.1,0.46722698]
[1766536687809,0.9338,2967.9,2967.2,4.25209894]
[1766536688302,0.002,2968.0,2967.2,4.25209894]
[1766536688501,0.002,2968.0,2967.2,7.62227958]
[1766536688707,3.37131694,2968.0,2967.2,0.882]
[1766536688929,0.9358,2968.0,2967.2,4.25217133]
[1766536689152,4.30510558,2968.0,2967.3,0.46856954]
[1766536689652,0.9358,2968.0,2967.3,0.46856954]
[1766536689806,0.9358,2968.0,2967.3,3.83856403]
[1766536690010,0.002,2968.0,2967.3,3.83856403]
[1766536690516,0.002,2968.0,2967.3,7.20863109]
[1766536690716,0.002,2968.0,2967.4,0.84276264]
[1766536691833,0.002,2968.0,2967.4,4.21268941]
[1766536692358,0.002,2968.0,2967.4,0.84276264]
[1766536692519,0.9338,2967.9,2967.4,0.80906311]
[1766536692717,0.9338,2967.7,2967.0,3.83]
[1766536693162,0.95068077,2967.7,2967.1,0.882]
[1766536693571,0.9338,2967.7,2967.1,0.882]
[1766536693985,3.38820133,2968.0,2967.2,0.0337018]
[1766536694135,3.37132056,2968.0,2967.1,1.69024753]
[1766536694335,4.30512056,2968.0,2967.1,1.69024753]
[1766536694541,0.9338,2967.9,2967.1,1.69024753]
[1766536695338,0.9338,2967.9,2967.2,0.88905942]
[1766536695543,3.37132056,2968.0,2967.2,0.87892242]
[1766536696162,4.30512056,2968.0,2967.2,0.87892242]
[1766536696487,7.67444112,2968.0,2967.3,0.882]
[1766536696692,0.9338,2967.9,2967.4,0.03369953]
[1766536697254,0.002,2968.0,2967.4,0.03369953]
[1766536697461,0.9338,2968.2,2967.4,0.03369953]
[1766536697856,4.30287122,2968.2,2967.4,0.03369953]
[1766536698292,4.30287122,2968.2,2967.4,0.4622856]
[1766536700079,0.9338,2968.5,2967.4,3.83222776]
[1766536700288,0.9338,2968.5,2967.4,7.16848172]
[1766536701001,0.9338,2968.5,2967.4,10.53843521]
[1766536701308,0.9338,2968.8,2967.5,1.14204352]
[1766536701506,0.9338,2968.8,2967.6,0.03369726]
[1766536701707,0.9338,2968.8,2967.7,0.882]
[1766536701907,0.95068077,2968.8,2967.7,0.882]
[1766536702478,0.9338,2968.6,2967.7,0.882]
[1766536703300,0.9338,2968.6,2967.7,7.62120072]
[1766536703506,0.9338,2968.6,2967.8,0.03369499]
[1766536703875,3.36838894,2968.8,2967.8,0.03369499]
[1766536704407,4.30210239,2968.9,2967.8,0.03369499]
[1766536704789,4.30210239,2968.9,2967.9,6.73877152]
[1766536704790,0.9338,2968.9,2967.9,6.73877152]
[1766536704983,0.9338,2968.9,2968.0,0.67387715]
[1766536705310,0.9338,2969.4,2968.1,0.91569158]
[1766536705508,0.95068077,2969.4,2968.2,0.882]
[1766536705709,0.9246,2969.3,2968.2,0.882]
[1766536706004,0.9246,2969.3,2968.2,1.89314108]
[1766536706206,0.9246,2969.1,2968.2,1.89314108]
[1766536706583,0.9246,2969.1,2968.3,3.36893171]
[1766536708312,0.9246,2969.1,2968.2,5.26213722]
[1766536708605,0.9246,2969.1,2968.3,3.89505461]
[1766536708812,0.002,2968.8,2968.3,3.89505461]
[1766536712514,0.002,2968.8,2968.3,7.26398632]
[1766536712811,0.002,2968.8,2968.4,0.03368818]
[1766536713615,0.002,2968.8,2968.3,3.89505461]
[1766536713811,0.002,2968.8,2968.4,0.91572223]
[1766536714819,0.002,2968.8,2968.4,4.28453076]
[1766536716792,0.002,2968.8,2968.5,0.03368704]
[1766536717622,0.002,2968.8,2968.5,3.40237345]
[1766536718423,0.002,2968.8,2968.5,0.03368704]
[1766536718604,0.002,2968.8,2968.5,0.46550677]
[1766536718800,0.9197,2968.8,2968.2,1.01114108]
[1766536719006,0.9177,2968.7,2967.9,3.36933618]
[1766536719205,0.9177,2968.7,2967.8,3.83]
[1766536719206,0.9177,2968.7,2967.8,4.84124674]
[1766536719529,0.9177,2968.4,2967.4,0.001]
[1766536719822,0.9177,2968.2,2967.4,0.001]
[1766536720011,0.9177,2968.0,2967.4,0.001]
[1766536720419,0.9177,2967.8,2966.8,1.01256727]
[1766536720605,0.9177,2967.6,2966.9,0.882]
[1766536720925,0.9177,2967.5,2966.9,0.882]
[1766536721828,0.9177,2967.5,2966.8,0.883]
[1766536722010,0.9177,2967.5,2966.8,1.30837198]
[1766536722195,0.93458077,2967.5,2966.8,0.001]
[1766536724127,0.9805,2967.4,2966.8,0.001]
[1766536726134,0.9805,2967.3,2966.8,0.001]
[1766536730105,0.9805,2967.2,2966.8,0.001]
[1766536730330,0.9805,2967.2,2966.6,0.882]
[1766536730509,0.99738077,2967.2,2966.4,0.001]
[1766536730838,3.37063502,2966.8,2966.2,0.001]
[1766536731131,0.9805,2966.7,2966.2,0.001]
[1766536732033,0.9805,2967.0,2966.2,0.001]
[1766536732324,0.9805,2967.3,2966.2,0.766979]
[1766536732500,0.9805,2967.3,2966.3,0.03371203]
[1766536732902,4.35045349,2967.4,2966.4,0.001]
[1766536733123,0.9805,2967.3,2966.4,0.03471089]
[1766536734329,0.9805,2967.3,2966.4,0.91671089]
[1766536735126,4.35065092,2967.3,2966.4,0.91671089]
[1766536735330,0.9805,2967.2,2966.4,0.91671089]
[1766536735715,0.9805,2967.2,2966.4,0.883]
[1766536735923,0.9805,2967.0,2966.4,0.001]
[1766536736514,0.9805,2967.0,2966.4,0.03471089]
[1766536736836,0.9805,2967.0,2966.4,0.37539624]
[1766536737131,0.01688077,2967.3,2966.5,0.882]
[1766536737428,4.3674513,2967.3,2966.5,0.882]
[1766536737630,0.9805,2967.2,2966.5,0.882]
[1766536738000,0.9805,2967.2,2966.6,0.03370862]
[1766536738203,0.9805,2967.2,2966.5,0.7083809]
[1766536738432,0.9805,2967.2,2966.2,0.883]
[1766536738733,0.9805,2967.2,2966.3,0.03371203]
[1766536738932,0.9805,2967.2,2966.4,3.37108953]
[1766536739121,0.9805,2967.2,2966.5,0.03370975]
[1766536739434,0.9805,2967.2,2966.4,3.37108953]
[1766536739634,0.9805,2967.2,2966.5,0.33710895]